bitfinex/quotes_SOLUSD_20250102
["timestamp","ask_amount","ask_price","bid_price","bid_amount"]
[1735825690752,0.74131617,208.37,208.31,7.96586118]
[1735825691464,0.74131617,208.37,208.32,7.96586118]
[1735825691853,0.74131617,208.37,208.33,7.96586118]
[1735825692161,0.74131617,208.37,208.28,1.5834]
[1735825692162,0.74131617,208.39,208.34,7.96586118]
[1735825692363,23.776884,208.38,208.34,7.96586118]
[1735825692554,0.74131617,208.37,208.33,7.96586118]
[1735825692758,0.74131617,208.37,208.32,7.96586118]
[1735825692950,23.776884,208.36,208.32,7.96586118]
[1735825693151,0.74131617,208.35,208.32,7.96586118]
[1735825693354,23.776884,208.37,208.32,7.96586118]
[1735825693545,0.74131617,208.36,208.32,7.96586118]
[1735825694467,23.776884,208.37,208.32,7.96586118]
[1735825694642,0.74131617,208.36,208.32,7.96586118]
[1735825695150,23.776884,208.35,208.27,20.0]
[1735825695352,0.74131617,208.34,208.27,20.0]
[1735825695562,23.776884,208.33,208.27,20.0]
[1735825695870,0.74131617,208.32,208.24,6.0549]
[1735825696049,31.74274518,208.33,208.24,6.0549]
[1735825696243,23.776884,208.31,208.26,7.96586118]
[1735825698363,0.74131617,208.3,208.26,7.96586118]
[1735825698877,0.74131617,208.3,208.25,7.96586118]
[1735825699950,23.776884,208.29,208.18,1.89519949]
[1735825700151,0.74131617,208.28,208.24,7.96586118]
[1735825700351,0.37647,208.3,208.25,7.96586118]
[1735825700551,0.74131617,208.29,208.25,7.96586118]
[1735825701145,0.74131617,208.29,208.19,20.0]
[1735825701567,23.776884,208.29,208.26,7.96586118]
[1735825702162,23.776884,208.29,208.25,7.96586118]
[1735825702664,0.37647,208.3,208.25,7.96586118]
[1735825702857,23.776884,208.29,208.25,7.96586118]
[1735825703870,7.96586118,208.34,208.27,7.96586118]
[1735825704066,0.74131617,208.33,208.27,7.96586118]
[1735825704372,24.153354,208.32,208.27,7.96586118]
[1735825704558,2.34681617,208.37,208.3,7.96586118]
[1735825705086,24.153354,208.35,208.29,7.96586118]
[1735825705281,0.74131617,208.34,208.29,7.96586118]
[1735825705443,24.153354,208.33,208.29,7.96586118]
[1735825705643,0.74131617,208.34,208.29,7.96586118]
[1735825705871,0.74131617,208.36,208.3,7.96586118]
[1735825706048,24.153354,208.35,208.3,7.96586118]
[1735825706249,0.74131617,208.34,208.3,7.96586118]
[1735825706552,0.37647,208.35,208.3,7.96586118]
[1735825707469,0.37647,208.35,208.29,7.96586118]
[1735825707972,0.37647,208.35,208.3,7.96586118]
[1735825708475,0.37647,208.35,208.29,7.96586118]
[1735825708851,0.37647,208.35,208.3,7.96586118]
[1735825709809,0.37647,208.35,208.29,7.96586118]
[1735825710490,0.37647,208.35,208.25,20.0]
[1735825710784,0.37647,208.35,208.29,7.96586118]
[1735825711287,0.37647,208.35,208.28,7.96586118]
[1735825711780,7.96586118,208.38,208.31,7.96586118]
[1735825711980,0.74131617,208.37,208.31,7.96586118]
[1735825713256,0.74131617,208.37,208.32,7.96586118]
[1735825713456,0.74131617,208.39,208.34,7.96586118]
[1735825713862,24.153354,208.38,208.27,0.71997594]
[1735825714082,8.70717735,208.37,208.3,7.96586118]
[1735825714392,0.74131617,208.37,208.31,7.96586118]
[1735825714698,23.902374,208.38,208.32,7.96586118]
[1735825714991,0.74131617,208.38,208.32,7.96586118]
[1735825715166,24.51820017,208.38,208.32,7.96586118]
[1735825717181,24.51820017,208.38,208.27,20.71998891]
[1735825717363,0.74131617,208.39,208.33,7.96586118]
[1735825718159,8.70717735,208.39,208.28,20.0]
[1735825718371,8.70717735,208.39,208.31,7.96586118]
[1735825719589,7.96586118,208.37,208.3,7.96586118]
[1735825719763,23.902374,208.38,208.3,7.96586118]
[1735825719764,0.74131617,208.36,208.3,7.96586118]
[1735825720170,0.74131617,208.36,208.31,7.96586118]
[1735825720883,0.74131617,208.37,208.31,7.96586118]
[1735825721066,0.74131617,208.37,208.3,7.96586118]
[1735825721685,1.6043,208.42,208.32,7.96586118]
[1735825721686,7.96586118,208.4,208.32,7.96586118]
[1735825721873,0.74131617,208.39,208.32,7.96586118]
[1735825722381,7.96586118,208.38,208.3,7.96586118]
[1735825722582,6.74131617,208.37,208.3,7.96586118]
[1735825722889,6.74131617,208.37,208.32,7.96586118]
[1735825723063,6.0,208.37,208.32,7.96586118]
[1735825727487,6.0,208.37,208.34,7.96586118]
[1735825727992,23.902374,208.36,208.34,7.96586118]
[1735825728363,6.0,208.37,208.34,7.96586118]
[1735825729200,23.776884,208.36,208.34,7.96586118]
[1735825729902,6.0,208.37,208.34,7.96586118]
[1735825730062,6.0,208.37,208.36,7.96586118]
[1735825732710,6.0,208.37,208.31,8.53600492]
[1735825733001,6.0,208.37,208.36,7.96586118]
[1735825733163,23.902374,208.36,208.35,7.96586118]
[1735825734170,0.12549,208.36,208.35,7.96586118]
[1735825734803,23.902374,208.36,208.35,7.96586118]
[1735825735973,23.776884,208.36,208.35,7.96586118]
[1735825737493,23.776884,208.36,208.33,7.96586118]
[1735825741281,23.776884,208.36,208.34,7.96586118]
[1735825743387,23.776884,208.36,208.33,7.96586118]
[1735825744272,0.37647,208.35,208.33,7.96586118]
[1735825744478,0.37647,208.35,208.27,0.71989388]
[1735825744479,0.37647,208.35,208.32,7.96586118]
[1735825746397,0.37647,208.35,208.33,7.96586118]
[1735825747399,0.12549,208.35,208.33,7.96586118]
[1735825747582,0.12549,208.35,208.29,20.0]
[1735825747775,0.37647,208.35,208.31,7.96586118]
[1735825748390,0.37647,208.35,208.32,7.96586118]
[1735825750806,0.37647,208.35,208.33,7.96586118]
[1735825753310,23.776884,208.36,208.33,7.96586118]
[1735825753603,23.776884,208.36,208.35,7.96586118]
[1735825755110,23.902374,208.36,208.35,7.96586118]
[1735825755611,23.902374,208.36,208.29,20.0]
[1735825755910,23.902374,208.36,208.34,7.96586118]
[1735825756410,0.12549,208.35,208.29,20.0]
[1735825756604,0.12549,208.35,208.33,7.96586118]
[1735825756804,0.12549,208.35,208.29,20.0]
[1735825757002,0.12549,208.35,208.33,7.96586118]
[1735825757612,0.12549,208.35,208.29,20.0]
[1735825757812,0.12549,208.35,208.33,7.96586118]
[1735825760407,0.37647,208.35,208.31,7.96586118]
[1735825760814,0.37647,208.35,208.32,7.96586118]
[1735825761714,0.12549,208.35,208.32,7.96586118]
[1735825763006,0.12549,208.35,208.33,7.96586118]
[1735825763214,0.12549,208.35,208.34,7.96586118]
[1735825763716,23.776884,208.36,208.34,7.96586118]
[1735825764014,6.0,208.37,208.35,7.96586118]
[1735825764210,6.0,208.37,208.36,7.96586118]
[1735825764717,29.776884,208.37,208.36,7.96586118]
[1735825768509,6.0,208.37,208.36,7.96586118]
[1735825769426,29.776884,208.37,208.36,7.96586118]
[1735825770898,6.0,208.37,208.36,7.96586118]
[1735825780027,6.0,208.37,208.3,32.58336392]
[1735825780210,6.0,208.37,208.35,7.96586118]
[1735825783120,29.776884,208.37,208.36,7.96586118]
[1735825791928,6.0,208.37,208.36,7.96586118]
[1735825794730,8.26469471,208.48,208.39,20.0]
[1735825795040,7.52337854,208.48,208.46,7.96586118]
[1735825795532,0.12549,208.48,208.46,7.96586118]
[1735825795905,0.74131617,208.51,208.46,7.96586118]
[1735825796409,24.153354,208.5,208.46,7.96586118]
[1735825796605,24.027864,208.48,208.45,7.96586118]
[1735825797240,0.86680617,208.47,208.43,7.96586118]
[1735825797446,24.027864,208.46,208.42,7.96586118]
[1735825798435,0.25098,208.46,208.42,7.96586118]
[1735825798612,24.027864,208.46,208.42,7.96586118]
[1735825798936,24.027864,208.44,208.41,7.96586118]
[1735825799131,24.027864,208.42,208.38,7.96586118]
[1735825799740,24.027864,208.42,208.37,7.96586118]
[1735825800105,24.027864,208.4,208.36,7.96586118]
[1735825800311,0.74131617,208.39,208.35,7.96586118]
[1735825800511,23.902374,208.38,208.34,7.96586118]
[1735825801431,0.12549,208.36,208.34,7.96586118]
[1735825802319,0.12549,208.36,208.35,7.96586118]
[1735825804035,24.51820017,208.41,208.35,7.96586118]
[1735825804427,0.37647,208.4,208.33,7.96586118]
[1735825804643,0.37647,208.4,208.34,7.96586118]
[1735825804931,0.37647,208.38,208.3,20.0]
[1735825805140,0.37647,208.38,208.32,7.96586118]
[1735825805325,0.37647,208.38,208.33,7.96586118]
[1735825807144,0.37647,208.38,208.34,7.96586118]
[1735825807443,0.37647,208.38,208.33,7.96586118]
[1735825807641,0.37647,208.38,208.34,7.96586118]
[1735825807818,0.37647,208.38,208.35,7.96586118]
[1735825808141,0.37647,208.38,208.36,7.96586118]
[1735825808338,0.74131617,208.39,208.36,7.96586118]
[1735825808538,0.74131617,208.42,208.38,7.96586118]
[1735825808844,0.74131617,208.44,208.38,7.96586118]
[1735825809537,24.153354,208.43,208.37,7.96586118]
[1735825809729,0.74131617,208.42,208.37,7.96586118]
[1735825810316,24.027864,208.41,208.37,7.96586118]
[1735825810738,0.25098,208.41,208.37,7.96586118]
[1735825811149,24.027864,208.42,208.38,7.96586118]
[1735825811347,24.027864,208.42,208.4,7.96586118]
[1735825811522,0.12549,208.42,208.4,7.96586118]
[1735825811942,24.027864,208.43,208.4,7.96586118]
[1735825812443,0.25098,208.43,208.41,7.96586118]
[1735825814442,0.25098,208.43,208.4,7.96586118]
[1735825815354,0.25098,208.43,208.41,7.96586118]
[1735825817351,8.70717735,208.47,208.4,7.96586118]
[1735825817546,0.74131617,208.47,208.42,7.96586118]
[1735825817744,9.17357854,208.5,208.44,7.96586118]
[1735825817934,0.74131617,208.49,208.44,7.96586118]
[1735825818758,24.027864,208.48,208.44,7.96586118]
[1735825819642,24.027864,208.49,208.43,7.96586118]
[1735825819850,0.12549,208.47,208.43,7.96586118]
[1735825820048,0.25098,208.45,208.41,7.96586118]
[1735825820658,0.12549,208.46,208.37,0.71957531]
[1735825820659,0.25098,208.46,208.37,0.71957531]
[1735825820838,0.12549,208.45,208.41,7.96586118]
[1735825821038,0.12549,208.44,208.4,7.96586118]
[1735825821529,23.776884,208.45,208.4,7.96586118]
[1735825821732,10.35737735,208.5,208.43,7.96586118]
[1735825822429,32.11921518,208.49,208.42,7.96586118]
[1735825822656,0.12549,208.46,208.4,7.96586118]
[1735825822849,24.027864,208.45,208.41,7.96586118]
[1735825823253,24.027864,208.45,208.4,7.96586118]
[1735825824449,0.25098,208.45,208.41,7.96586118]
[1735825824655,9.61606118,208.5,208.43,7.96586118]
[1735825824842,0.74131617,208.49,208.43,7.96586118]
[1735825825562,24.153354,208.48,208.43,7.96586118]
[1735825825740,24.027864,208.46,208.42,7.96586118]
[1735825825939,24.027864,208.46,208.41,7.96586118]
[1735825826372,24.027864,208.46,208.4,7.96586118]
[1735825826550,24.027864,208.46,208.41,7.96586118]
[1735825828056,24.027864,208.46,208.42,7.96586118]
[1735825828651,0.25098,208.47,208.42,7.96586118]
[1735825832385,0.25098,208.47,208.43,7.96586118]
[1735825833383,0.74131617,208.49,208.43,7.96586118]
[1735825836679,24.027864,208.48,208.43,7.96586118]
[1735825836972,24.027864,208.48,208.37,20.71963782]
[1735825836973,24.027864,208.48,208.38,20.0]
[1735825837277,24.027864,208.48,208.42,7.96586118]
[1735825838172,8.83266735,208.48,208.42,7.96586118]
[1735825838480,0.12549,208.47,208.42,7.96586118]
[1735825838878,0.12549,208.45,208.37,20.0]
[1735825839182,8.09135118,208.46,208.36,7.96586118]
[1735825839183,23.902374,208.42,208.36,7.96586118]
[1735825839369,0.12549,208.4,208.35,7.96586118]
[1735825839698,23.902374,208.4,208.35,7.96586118]
[1735825840058,23.902374,208.4,208.34,7.96586118]
[1735825840279,0.12549,208.37,208.29,6.3428]
[1735825840459,0.25098,208.37,208.31,7.96586118]
[1735825840665,23.776884,208.36,208.29,6.3428]
[1735825841176,0.25098,208.37,208.31,7.96586118]
[1735825841374,24.76918017,208.37,208.31,7.96586118]
[1735825841557,24.027864,208.37,208.32,7.96586118]
[1735825842762,24.153354,208.38,208.33,7.96586118]
[1735825843069,0.25098,208.38,208.34,7.96586118]
[1735825843278,0.25098,208.38,208.35,7.96586118]
[1735825843472,0.74131617,208.41,208.36,7.96586118]
[1735825843680,10.21157735,208.43,208.36,7.96586118]
[1735825843860,0.12549,208.42,208.37,7.96586118]
[1735825844583,24.153354,208.42,208.37,7.96586118]
[1735825845161,24.153354,208.42,208.36,7.96586118]
[1735825846460,31.99372518,208.38,208.29,6.3428]
[1735825846682,23.902374,208.36,208.31,7.96586118]
[1735825846989,23.902374,208.36,208.32,7.96586118]
[1735825847485,7.96586118,208.41,208.35,7.96586118]
[1735825847871,23.902374,208.39,208.34,7.96586118]
[1735825849494,24.027864,208.4,208.34,7.96586118]
[1735825849788,24.027864,208.4,208.35,7.96586118]
[1735825851488,0.37647,208.41,208.36,7.96586118]
[1735825851670,0.12549,208.39,208.36,7.96586118]
[1735825852665,0.12549,208.4,208.36,7.96586118]
[1735825854286,0.74131617,208.46,208.39,7.96586118]
[1735825854597,0.74131617,208.47,208.44,7.96586118]
[1735825854765,24.153354,208.46,208.43,7.96586118]
[1735825854966,0.74131617,208.45,208.42,7.96586118]
[1735825855173,0.74131617,208.47,208.42,7.96586118]
[1735825855373,24.153354,208.46,208.42,7.96586118]
[1735825856468,0.37647,208.46,208.42,7.96586118]
[1735825857082,24.153354,208.44,208.41,7.96586118]
[1735825857396,24.153354,208.44,208.4,7.96586118]
[1735825858286,24.027864,208.44,208.4,7.96586118]
[1735825858592,7.96586118,208.47,208.4,7.96586118]
[1735825858791,24.027864,208.45,208.4,7.96586118]
[1735825859389,0.25098,208.43,208.33,22.36232488]
[1735825859588,0.25098,208.43,208.37,7.96586118]
[1735825859910,0.25098,208.43,208.38,7.96586118]
[1735825860392,0.25098,208.43,208.37,7.96586118]
[1735825861376,0.25098,208.41,208.29,6.3428]
[1735825861576,0.25098,208.41,208.35,7.96586118]
[1735825861577,0.99229617,208.41,208.35,7.96586118]
[1735825861789,0.12549,208.39,208.35,7.96586118]
[1735825862293,0.25098,208.41,208.35,7.96586118]
[1735825862673,0.99229617,208.41,208.35,7.96586118]
[1735825862873,0.12549,208.39,208.35,7.96586118]
[1735825863073,0.12549,208.39,208.36,7.96586118]
[1735825863692,0.25098,208.41,208.37,7.96586118]
[1735825864104,0.12549,208.39,208.36,7.96586118]
[1735825864596,0.12549,208.42,208.37,7.96586118]
[1735825864896,9.14507854,208.48,208.41,7.96586118]
[1735825865197,24.153354,208.46,208.4,7.96586118]
[1735825865369,0.74131617,208.45,208.4,7.96586118]
[1735825865574,0.74131617,208.47,208.4,7.96586118]
[1735825865791,8.70717735,208.47,208.4,7.96586118]
[1735825866201,24.153354,208.46,208.4,7.96586118]
[1735825866390,23.902374,208.44,208.4,7.96586118]
[1735825866898,23.902374,208.44,208.39,7.96586118]
[1735825867395,0.12549,208.45,208.39,7.96586118]
[1735825868780,0.12549,208.45,208.4,7.96586118]
[1735825869501,0.12549,208.45,208.39,7.96586118]
[1735825869683,0.12549,208.45,208.4,7.96586118]
[1735825870283,0.12549,208.45,208.39,7.96586118]
[1735825871879,0.12549,208.45,208.4,7.96586118]
[1735825872506,1.6217,208.48,208.41,7.96586118]
[1735825872507,9.58756118,208.48,208.41,7.96586118]
[1735825872802,24.027864,208.47,208.42,7.96586118]
[1735825873700,23.902374,208.47,208.42,7.96586118]
[1735825873902,7.96586118,208.49,208.42,7.96586118]
[1735825874103,24.153354,208.5,208.42,7.96586118]
[1735825874401,0.74131617,208.49,208.43,7.96586118]
[1735825874603,23.902374,208.48,208.43,7.96586118]
[1735825875181,23.902374,208.48,208.42,7.96586118]
[1735825876485,31.86823518,208.46,208.39,7.96586118]
[1735825877617,0.86680617,208.5,208.35,21.6149]
[1735825877618,7.96586118,208.43,208.35,21.6149]
[1735825877928,23.902374,208.42,208.36,7.96586118]
[1735825878718,0.25098,208.43,208.36,7.96586118]
[1735825878933,24.027864,208.43,208.36,7.96586118]
[1735825879299,31.99372518,208.43,208.36,7.96586118]
[1735825880005,0.12549,208.41,208.35,27.96586118]
[1735825880209,23.902374,208.41,208.35,7.96586118]
[1735825880410,23.902374,208.41,208.36,7.96586118]
[1735825880611,23.902374,208.42,208.36,7.96586118]
[1735825880795,23.902374,208.42,208.35,7.96586118]
[1735825881226,23.902374,208.42,208.36,7.96586118]
[1735825881424,0.12549,208.4,208.35,7.96586118]
[1735825882425,23.776884,208.42,208.35,7.96586118]
[1735825882615,23.776884,208.42,208.36,7.96586118]
[1735825883634,0.12549,208.41,208.36,7.96586118]
[1735825883832,0.12549,208.41,208.37,7.96586118]
[1735825884417,0.12549,208.42,208.37,7.96586118]
[1735825886419,24.027864,208.4,208.35,7.96586118]
[1735825888025,0.12549,208.43,208.36,7.96586118]
[1735825888228,0.86680617,208.43,208.36,7.96586118]
[1735825888426,0.12549,208.41,208.35,7.96586118]
[1735825888603,24.027864,208.4,208.35,7.96586118]
[1735825890009,24.027864,208.4,208.34,7.96586118]
[1735825890212,24.027864,208.4,208.35,7.96586118]
[1735825890504,24.027864,208.4,208.36,7.96586118]
[1735825890925,24.027864,208.4,208.31,7.21785282]
[1735825890926,0.74131617,208.39,208.31,7.21785282]
[1735825891132,23.902374,208.38,208.33,7.96586118]
[1735825891333,0.12549,208.36,208.33,7.96586118]
[1735825891502,15.120105,208.36,208.31,7.96586118]
[1735825891709,0.12549,208.39,208.32,7.96586118]
[1735825891908,0.86680617,208.39,208.32,7.96586118]
[1735825892128,0.86680617,208.39,208.33,7.96586118]
[1735825893732,24.027864,208.38,208.33,7.96586118]
[1735825894323,8.70717735,208.42,208.35,7.96586118]
[1735825895336,21.958854,208.41,208.36,7.96586118]
[1735825896132,0.74131617,208.4,208.35,7.96586118]
[1735825898122,0.25098,208.4,208.35,7.96586118]
[1735825898419,0.25098,208.4,208.34,7.96586118]
[1735825898746,0.99229617,208.4,208.34,7.96586118]
[1735825898933,0.99229617,208.4,208.3,0.71986952]
[1735825898934,0.99229617,208.4,208.33,7.96586118]
[1735825899243,0.25098,208.38,208.33,7.96586118]
[1735825899414,0.99229617,208.38,208.33,7.96586118]
[1735825902338,0.74131617,208.38,208.34,7.96586118]
[1735825902525,0.74131617,208.4,208.34,7.96586118]
[1735825902731,7.96586118,208.42,208.35,7.96586118]
[1735825902931,24.027864,208.4,208.36,7.96586118]
[1735825903129,0.25098,208.4,208.35,7.96586118]
[1735825903329,0.74131617,208.41,208.35,7.96586118]
[1735825903548,8.70717735,208.41,208.34,7.96586118]
[1735825903720,24.027864,208.4,208.34,7.96586118]
[1735825903917,0.74131617,208.39,208.34,7.96586118]
[1735825904121,0.74131617,208.39,208.33,7.96586118]
[1735825904539,0.25098,208.38,208.33,7.96586118]
[1735825904731,24.027864,208.38,208.33,7.96586118]
[1735825904931,0.74131617,208.37,208.33,7.96586118]
[1735825905631,0.25098,208.38,208.33,7.96586118]
[1735825906149,0.25098,208.38,208.29,20.0]
[1735825906438,0.25098,208.38,208.33,7.96586118]
[1735825906647,0.25098,208.38,208.27,0.7198301]
[1735825906648,0.25098,208.38,208.32,7.96586118]
[1735825907141,0.12549,208.37,208.31,7.96586118]
[1735825907351,24.027864,208.36,208.3,7.96586118]
[1735825907533,0.74131617,208.35,208.3,7.96586118]
[1735825907852,13.0437835,208.3,208.26,6.3751]
[1735825908029,13.0437835,208.3,208.29,7.96586118]
[1735825908430,13.0437835,208.3,208.28,7.96586118]
[1735825908840,13.0437835,208.3,208.27,7.96586118]
[1735825910350,24.76918017,208.29,208.26,7.96586118]
[1735825910646,24.027864,208.29,208.26,7.96586118]
[1735825910854,24.76918017,208.29,208.25,7.96586118]
[1735825911031,24.76918017,208.29,208.24,7.96586118]
[1735825911234,24.76918017,208.29,208.2,1.6308]
[1735825911440,24.76918017,208.29,208.22,7.96586118]
[1735825911840,24.76918017,208.29,208.2,1.6308]
[1735825912036,24.027864,208.27,208.21,7.96586118]
[1735825912251,24.76918017,208.27,208.21,7.96586118]
[1735825913351,24.76918017,208.27,208.23,7.96586118]
[1735825913530,24.027864,208.27,208.23,7.96586118]
[1735825913735,13.0437835,208.3,208.25,7.96586118]
[1735825913932,0.74131617,208.29,208.25,7.96586118]
[1735825914352,13.0437835,208.3,208.26,7.96586118]
[1735825914928,13.0437835,208.3,208.17,0.72032805]
[1735825915129,0.74131617,208.29,208.24,7.96586118]
[1735825915744,0.74131617,208.29,208.25,7.96586118]
[1735825916261,13.78509967,208.3,208.25,7.96586118]
[1735825916637,13.0437835,208.3,208.27,7.96586118]
[1735825916946,13.0437835,208.3,208.28,7.96586118]
[1735825917328,13.0437835,208.3,208.29,7.96586118]
[1735825926652,13.0437835,208.3,208.28,7.96586118]
[1735825926852,13.0437835,208.3,208.23,20.0]
[1735825927048,13.0437835,208.3,208.18,7.7187]
[1735825927248,0.74131617,208.29,208.23,7.96586118]
[1735825927450,32.11921518,208.28,208.14,5.0]
[1735825927671,0.74131617,208.27,208.15,0.72033601]
[1735825927858,0.74131617,208.27,208.2,7.96586118]
[1735825928065,0.74131617,208.27,208.21,7.96586118]
[1735825928259,24.027864,208.26,208.19,7.96586118]
[1735825928460,0.86680617,208.25,208.18,7.96586118]
[1735825928769,25.537664,208.24,208.18,7.96586118]
[1735825929071,0.12549,208.21,208.15,7.96586118]
[1735825929250,24.027864,208.2,208.15,7.96586118]
[1735825929646,1.5098,208.24,208.17,7.96586118]
[1735825929868,24.027864,208.22,208.17,7.96586118]
[1735825930070,0.74131617,208.21,208.15,7.96586118]
[1735825930574,24.027864,208.2,208.11,0.72055402]
[1735825930763,24.027864,208.2,208.15,7.96586118]
[1735825930959,7.96586118,208.23,208.11,0.72055079]
[1735825931268,0.25098,208.21,208.15,7.96586118]
[1735825931474,24.027864,208.21,208.11,0.72055079]
[1735825931673,0.74131617,208.2,208.1,20.0]
[1735825932188,8.70717735,208.2,208.1,20.0]
[1735825932369,8.70717735,208.2,208.08,0.72055386]
[1735825932564,8.09135118,208.19,208.08,0.72055386]
[1735825932876,0.25098,208.15,208.05,0.72063706]
[1735825933181,0.99229617,208.15,208.02,0.72080887]
[1735825933354,0.12549,208.11,208.05,7.96586118]
[1735825933549,0.12549,208.09,207.98,0.72088921]
[1735825933754,0.86680617,208.09,208.04,7.96586118]
[1735825933954,0.86680617,208.09,207.98,0.72088921]
[1735825934178,0.86680617,208.09,208.03,7.96586118]
[1735825934365,0.86680617,208.09,207.98,0.72088921]
[1735825934565,0.86680617,208.09,208.03,7.96586118]
[1735825935277,8.83266735,208.09,208.02,7.96586118]
[1735825935481,0.86680617,208.09,208.03,7.96586118]
[1735825935658,0.74131617,208.13,208.06,7.96586118]
[1735825935978,24.027864,208.12,208.06,7.96586118]
[1735825936170,0.74131617,208.11,208.06,7.96586118]
[1735825936480,21.42316939,208.19,208.1,12.50125322]
[1735825936658,21.42316939,208.19,208.12,12.50125322]
[1735825936856,24.153354,208.18,208.12,12.50125322]
[1735825937063,24.027864,208.16,208.05,20.0]
[1735825937277,0.74131617,208.15,208.05,20.72070964]
[1735825937576,0.74131617,208.15,208.1,12.50125322]
[1735825937770,0.74131617,208.16,208.11,12.50125322]
[1735825938082,0.74131617,208.17,208.12,12.50125322]
[1735825938871,0.74131617,208.17,208.13,12.50125322]
[1735825939069,0.74131617,208.18,208.13,12.50125322]
[1735825939686,0.74131617,208.19,208.14,12.50125322]
[1735825940676,24.89467017,208.21,208.14,12.50125322]
[1735825940882,37.39592339,208.21,208.14,12.50125322]
[1735825943472,24.76918017,208.21,208.14,12.50125322]
[1735825943670,24.76918017,208.21,208.08,20.0]
[1735825943872,24.76918017,208.21,208.15,12.50125322]
[1735825944671,0.74131617,208.22,208.18,12.50125322]
[1735825945076,0.74131617,208.24,208.2,12.50125322]
[1735825945390,0.74131617,208.26,208.21,12.50125322]
[1735825945596,0.12549,208.25,208.21,12.50125322]
[1735825946184,24.89467017,208.27,208.21,12.50125322]
[1735825949276,37.39592339,208.27,208.2,12.50125322]
[1735825949481,0.12549,208.25,208.19,12.50125322]
[1735825949667,0.12549,208.23,208.17,12.50125322]
[1735825949876,0.12549,208.21,208.15,12.50125322]
[1735825950191,0.86680617,208.21,208.16,12.50125322]
[1735825950887,12.50125322,208.24,208.17,12.50125322]
[1735825951091,0.74131617,208.23,208.18,12.50125322]
[1735825951294,0.12549,208.22,208.17,12.50125322]
[1735825952082,0.74131617,208.24,208.18,12.50125322]
[1735825952596,0.74131617,208.24,208.19,12.50125322]
[1735825953173,24.76918017,208.25,208.19,12.50125322]
[1735825953873,27.26918017,208.25,208.19,12.50125322]
[1735825954996,39.77043339,208.25,208.17,12.50125322]
[1735825955178,0.12549,208.23,208.17,12.50125322]
[1735825955378,0.86680617,208.23,208.17,12.50125322]
[1735825957181,0.86680617,208.23,208.18,12.50125322]
[1735825957384,0.12549,208.23,208.18,12.50125322]
[1735825957585,0.74131617,208.22,208.18,12.50125322]
[1735825958603,0.12549,208.22,208.18,12.50125322]
[1735825958781,0.12549,208.22,208.16,12.50125322]
[1735825959681,0.74131617,208.21,208.16,12.50125322]
[1735825959979,0.12549,208.22,208.16,12.50125322]
[1735825960181,0.86680617,208.22,208.16,12.50125322]
[1735825960800,0.86680617,208.22,208.17,12.50125322]
[1735825963502,0.12549,208.2,208.17,12.50125322]
[1735825963800,0.12549,208.2,208.15,12.50125322]
[1735825963801,0.86680617,208.2,208.15,12.50125322]
[1735825964606,24.89467017,208.22,208.16,12.50125322]
[1735825964779,0.25098,208.2,208.14,12.50125322]
[1735825965078,0.99229617,208.2,208.14,12.50125322]
[1735825966307,13.49354939,208.2,208.13,12.50125322]
[1735825967475,13.49354939,208.2,208.14,12.50125322]
[1735825967682,0.99229617,208.2,208.14,12.50125322]
[1735825968403,7.05639617,208.2,208.07,20.0]
[1735825968704,0.12549,208.18,208.13,7.99441009]
[1735825968900,0.86680617,208.18,208.12,7.99441009]
[1735825969798,0.12549,208.16,208.11,7.99441009]
[1735825969996,0.86680617,208.16,208.11,7.99441009]
[1735825970700,0.86680617,208.16,208.1,7.99441009]
[1735825970898,0.12549,208.14,208.04,0.72069112]
[1735825971119,8.86121626,208.14,208.07,7.99441009]
[1735825971295,0.12549,208.11,207.98,7.5589]
[1735825971502,0.86680617,208.11,208.05,7.99441009]
[1735825971720,0.86680617,208.11,208.06,7.99441009]
[1735825972297,0.86680617,208.11,208.06,12.5014067]
[1735825972803,24.76918017,208.12,208.06,12.5014067]
[1735825973002,12.0104,208.16,208.09,12.5014067]
[1735825973184,0.74131617,208.14,208.09,12.5014067]
[1735825973504,0.12549,208.13,208.09,12.5014067]
[1735825973706,0.74131617,208.14,208.09,12.5014067]
[1735825974214,24.76918017,208.15,208.09,12.5014067]
[1735825974716,24.76918017,208.15,208.09,11.0014067]
[1735825975610,37.27058687,208.15,208.08,12.5014067]
[1735825976120,12.6268967,208.13,208.01,20.0]
[1735825976410,0.86680617,208.13,208.06,12.5014067]
[1735825976590,0.86680617,208.13,208.08,12.5014067]
[1735825976791,0.12549,208.13,208.08,12.5014067]
[1735825976989,13.5447,208.19,208.08,12.5014067]
[1735825977186,13.5447,208.19,208.02,0.72084776]
[1735825977187,0.74131617,208.18,208.12,12.5014067]